Cogmind - Beta 14 @@@ ROGUE MODE // 2024.11.08 @ 17:33:16 Player: bogmind Result: Destroyed by G-34 Mercenary with Small Laser Performance ------------- Evolutions (0) 0 Regions Visited (1) 200 Robots Destroyed (7) 35 Value Destroyed (244) 244 Prototype IDs (0) 0 Alien Tech Used (0) 0 Bonus (0) 0 TOTAL SCORE: 479 Bonus ------- None Cogmind --------- Core Integrity 0/250 Matter 300/300 Energy 100/100 System Corruption 0% Temperature Cool (6) Movement Walking (120) Location -10/Materials Parts ------- > --- POWER (1) -------- (None) > --- PROPULSION (2) --- Aluminum Leg > --- UTILITY (2) ------ Small Storage Unit > --- WEAPON (2) ------- Medium Laser > --- INVENTORY (8) ---- Huge Storage Unit Sensor Array Signal Interpreter Assault Rifle Grenade Launcher Peak State ------------ > --- POWER ------------ Ion Engine > --- PROPULSION ------- Aluminum Leg Aluminum Leg > --- UTILITY ---------- Small Storage Unit > --- WEAPON ----------- Small Laser Light Assault Rifle > --- INVENTORY -------- Assault Rifle [Rating: 6] Favorites ----------- Power Ion Engine Engine Ion Engine Propulsion Aluminum Leg Leg Aluminum Leg Utility Small Storage Unit Storage Small Storage Unit Weapon Small Laser Energy Gun Small Laser Ballistic Gun Light Assault Rifle Build | -11 -10 ------- Run | Yrd Mat Slots Evolved . | . . Power . | . . Propulsion . | . . Utility . | . . Weapon . | . . Parts Attached 14 | 6 8 Power 1 | 1 . Engine 1 | 1 . Core . | . . Reactor . | . . Propulsion 5 | 2 3 Treads . | . . Leg 5 | 2 3 Wheel . | . . Hover . | . . Flight . | . . Utility 3 | 1 2 Device . | . . Storage 3 | 1 2 Processor . | . . Hackware . | . . Protection . | . . Artifact . | . . Weapon 5 | 2 3 Energy Gun 4 | 1 3 Energy Cannon . | . . Ballistic Gun 1 | 1 . Ballistic Cannon . | . . Launcher . | . . Special Weapon . | . . Impact Weapon . | . . Slashing Weapon . | . . Piercing Weapon . | . . Special Melee Weapon . | . . Unidentified Prototypes . | . . Parts Lost 6 | . 6 Power 1 | . 1 Propulsion 2 | . 2 Utility . | . . Weapon 3 | . 3 Highest Loss Streak 6 | . 6 To Critical Strikes . | . . Average Slot Usage (%) 80 | . 80 Engine 12 | . 12 Leg 25 | . 25 Storage 14 | . 14 Energy Gun 14 | . 14 Ballistic Gun 12 | . 12 Peak Build Rating 6 | 6 6 Average Rating 5 | 3 5 On Entrance 3 | . 6 Naked Turns . | . . Heaviest Build 12 | 12 12 Greatest Support 20 | 20 20 Greatest Overweight (x) 3 | 3 . Average Overweight (x) . | 1 . Largest Inventory Capacity 25 | 8 25 Average Capacity 7 | 7 8 Most Carried 8 | 3 8 Average Carried 4 | . 5 Final Capacity 8 | 8 8 Final Carried 5 | 1 5 Class Distribution -------------------- 100% | Mutant Dominant Class ---------------- Mutant | -10/Materials Resources | -11 -10 ----------- Run | Yrd Mat Matter Collected 325 | 253 72 Remotely . | . . Salvage Created 232 | . 232 Parts 12 | . 12 Haulers Intercepted . | . . Recyclers Shooed 2 | . 2 Parts Field Recycled . | . . Retrieved Matter . | . . Parts Self-Destructed . | . . Prevented . | . . Kills | -11 -10 ------- Run | Yrd Mat Combat Hostiles Destroyed 6 | . 6 Guns 6 | . 6 Classes Destroyed 2 | . 2 Worker 1 | . 1 Grunt 6 | . 6 Best Kill Streak 2 | . 2 Combat Bots Only 2 | . 2 Max Kills in Single Turn 1 | . 1 Gunslinging . | . . Exploded . | . . Melee . | . . Uniques/NPCs Destroyed . | . . Combat | -11 -10 -------- Run | Yrd Mat Hostile Shots Fired 92 | . 92 Missed 23 | . 23 Damage Taken 895 | . 895 Core 259 | . 259 Absorbed by Shields . | . . Core Remaining (%) 100 | 100 . Volleys Fired 34 | . 34 Largest 2 | . 2 Hottest 90 | . 90 Shots Fired 64 | . 64 Gun 64 | . 64 Cannon . | . . Launcher . | . . Special . | . . Kinetic 27 | . 27 Thermal 37 | . 37 Explosive . | . . Electromagnetic . | . . Robot Hit Streak 12 | . 12 Robot Miss Streak 3 | . 3 Penetration Max . | . . Secondary Targets 1 | . 1 Max Gunslinging Chain 1 | . 1 Shots Hit Robots 45 | . 45 Core Hits 24 | . 24 Critical Kills . | . . Critical Parts Destroyed . | . . Critical Strikes . | . . Melee Attacks . | . . Impact . | . . Slashing . | . . Piercing . | . . Sneak Attacks . | . . Combat Hostiles . | . . Follow-up Attacks . | . . Damage Inflicted 550 | . 550 Guns 511 | . 511 Cannons . | . . Explosions . | . . Melee . | . . Ramming 39 | . 39 Kinetic 164 | . 164 Thermal 347 | . 347 Explosive . | . . Electromagnetic . | . . Impact . | . . Slashing . | . . Piercing . | . . Highest Corruption . | . . Average Corruption . | . . Corruption Purged . | . . Corruption Blocked . | . . Overload Shots . | . . Overflow Damage . | . . Projectiles . | . . Explosions . | . . Melee . | . . Knockbacks . | . . Impact . | . . Kinetic . | . . Secondary . | . . Self-Inflicted Damage . | . . Shots . | . . Rammed 1 | . 1 Targets Rammed 35 | . 35 Kicked 34 | . 34 Crushed . | . . Highest Temperature 158 | . 158 Average Temperature 49 | . 49 Received Heat Transfer 531 | . 531 Siege Activations . | . . Robots Corrupted . | . . Combat Hostiles . | . . Parts Fried . | . . Impact Corruptions . | . . Robots Melted . | . . Combat Hostiles . | . . Parts Melted . | . . Heat Transferred 834 | . 834 Parts Sabotaged . | . . Parts Stolen . | . . Parts Stripped . | . . Power Chain Reactions . | . . Alert | -11 -10 ------- Run | Yrd Mat Peak Influence 110 | . 110 Initial . | . . Average 40 | . 46 Maximum Alert Level . | . . Low Security (%) 100 | 100 100 Level 1 . | . . Level 2 . | . . Level 3 . | . . Level 4 . | . . Level 5 . | . . High Security . | . . Max Security . | . . Squads Dispatched 1 | . 1 Investigation 1 | . 1 Extermination . | . . Reinforcement . | . . Assault . | . . Garrison . | . . Intercept . | . . Searches Triggered . | . . Construction Impeded . | . . Haulers Reinforced . | . . Active Scanning Responses . | . . Cargo Convoy Interrupts . | . . Stealth | -11 -10 --------- Run | Yrd Mat Distress Signals . | . . Communications Jammed . | . . Distress Signals . | . . Times Spotted 8 | . 8 Peak Tracking Total 2 | . 2 Tactical Retreats 1 | . 1 Traps | -11 -10 ------- Run | Yrd Mat Traps Triggered . | . . Indirectly . | . . Trap Hack Attempts . | . . Triggered . | . . Disarmed . | . . Reprogrammed . | . . Reused . | . . Traps Extracted . | . . Installed . | . . Triggered . | . . Machines | -11 -10 ---------- Run | Yrd Mat Machines Disabled . | . . Max in Single Turn . | . . Machines Repaired . | . . Machines Dismantled . | . . Machines Sabotaged . | . . Overloaded Fab Kills . | . . Hacking | -11 -10 --------- Run | Yrd Mat Machines Accessed 5 | . 5 Terminals 5 | . 5 Fabricators . | . . Repair Stations . | . . Recycling Units . | . . Scanalyzers . | . . Garrison Access . | . . Total Hacks 15 | . 15 Successful 6 | . 6 Failed 9 | . 9 Catastrophic 1 | . 1 Database Lockouts . | . . Manual . | . . Terminals 15 | . 15 Fabricators . | . . Repair Stations . | . . Recycling Units . | . . Scanalyzers . | . . Garrison Access . | . . Terminal Hacks 6 | . 6 Record 2 | . 2 Robot Analysis 1 | . 1 Alert Level 1 | . 1 Locate Traps 1 | . 1 Recall Investigation 1 | . 1 Fabricator Hacks . | . . Repair Station Hacks . | . . Recycling Unit Hacks . | . . Scanalyzer . | . . Garrison Access Hacks . | . . Unauthorized Hacks . | . . Terminals . | . . Fabricators . | . . Repair Stations . | . . Recycling Units . | . . Scanalyzers . | . . Garrison Access . | . . Data Cores Recovered . | . . Used . | . . Hacking Detections 5 | . 5 Full Trace Events 1 | . 1 Feedback Events . | . . Feedback Blocked . | . . Robot Schematics Acquired . | . . Robots Built . | . . Authchips . | . . Time . | . . Total Robot Build Rating . | . . Part Schematics Acquired . | . . Parts Built . | . . Authchips . | . . Time . | . . Total Part Build Rating . | . . Parts Repaired . | . . Time . | . . Parts Recycled . | . . Recycled Matter . | . . Retrieved Matter . | . . Retrieved Components . | . . Parts Scanalyzed . | . . Part Schematics Acquired . | . . Parts Damaged . | . . Bothacking | -11 -10 ------------ Run | Yrd Mat Used RIF Installer . | . . Robots Hacked . | . . Non-combat . | . . Combat . | . . Robot Hacks Applied . | . . Relay Couplers Released . | . . Fabnet Peak Effective % . | . . Robots Rewired . | . . Allies Hacked . | . . Hacks Repelled . | . . Allies | -11 -10 -------- Run | Yrd Mat Total Allies . | . . Largest Group . | . . Highest-Rated Group . | . . Highest-Rated Ally . | . . Total Orders . | . . Ally Attacks . | . . Total Damage . | . . Kills . | . . Allies Corrupted . | . . Allies Melted . | . . Intel | -11 -10 ------- Run | Yrd Mat Robot Analysis Total 1 | . 1 Derelict Logs Recovered . | . . Drone Launches . | . . Drone Recoveries . | . . Exploration | -11 -10 ------------- Run | Yrd Mat Turns Passed 597 | 77 520 Spaces Moved 341 | 41 300 Core 24 | 24 . Treads . | . . Legs 317 | 17 300 Wheels . | . . Hover . | . . Flight . | . . Fastest Speed 50 | 50 120 Average Speed 122 | 137 120 Slowest Speed 200 | 200 120 Overloaded Moves . | . . Propulsion Burnouts . | . . Robots Hopped . | . . Cave-ins Triggered . | . . Exploration Rate (%) 19 | 4 34 Regions Visited 1 Branch Regions . Pre-discovered Areas . | . . Known Exits Taken . | . . Unknown Exits Taken 1 | 1 . Scrap Searched . | . . Spaces Dug . | . . Terrain Destroyed . | . . Melee . | . . Projectile . | . . AOE . | . . Terrain Rammed . | . . Walls Destroyed . | . . Machines Disabled . | . . Actions | -11 -10 --------- Run | Yrd Mat Total 454 | 61 393 Wait 11 | 8 3 Move 340 | 40 300 Hop . | . . Pick Up 16 | 7 9 Fast Attach . | . . Attach 9 | 6 3 Detach . | . . Swap 5 | . 5 Drop 4 | . 4 Fire 34 | . 34 Melee . | . . Ram 1 | . 1 Kick 34 | . 34 Crush . | . . Escape Stasis . | . . Rewire . | . . Trap . | . . Miscellaneous . | . . Route ------- -11/Scrapyard -10/Materials (discovered 1 exit: [*Mat]) History --------- Turn | Location | Event 50 | -11/Scrapyard | Discovered new exit (range 14) 78 | -11/Scrapyard | Entered Materials 332 | -10/Materials | Build established: Mutant 382 | -10/Materials | Discovered new exit (range 16) 533 | -10/Materials | Core integrity fell below 50% 557 | -10/Materials | Core integrity fell below 20% 598 | -10/Materials | Destroyed by G-34 Mercenary with Small Laser Last Messages --------------- 00567_ Acquired 16 matter. 00569_ Kicked G-34 Mercenary. 00571_ G-34 Mercenary heat damages Aluminum Leg, Ion Engine, Sml. Laser. 00571_ Kicked G-34 Mercenary. 00572_ Sml. Laser destroyed. 00573_ Kicked G-34 Mercenary. 00575_ Kicked G-34 Mercenary out of the way. 00576_ G-34 Mercenary heat short circuits Aluminum Leg. 00576_ Kicked G-34 Mercenary. 00578_ G-34 Mercenary heat spikes uncontrollably. 00578_ Kicked G-34 Mercenary. 00578_ G-34 Mercenary overheating. 00579_ Kicked G-34 Mercenary. 00580_ G-34 Mercenary overheating. 00581_ Kicked G-34 Mercenary. 00581_ G-34 Mercenary overheating. 00582_ Kicked G-34 Mercenary. 00582_ G-34 Mercenary overheating. 00583_ Kicked G-34 Mercenary. 00597_ Kicked G-34 Mercenary out of the way. Map ----- +----------------------------------------------------+ | ?????????????????????????????????????????????????? | | ?????????????????????????????????????????????????? | | ???????????????? ""?????????????????????????????? | | ??????? ?????? ### ?????????????????????????? | | ??????? "??? #????????????????????????? | | ??????? "?" ^ #????????????????????????? | | ??????? ###??????????????????????? | | ??????? #??????????????????????? | | ??????? ? +??????????????????????? | | ??????? ?? #??????????????????????? | | ??????? ??? #??????????????????????? | | ???????# ???? #??????????????????????? | | ???????# ????? ???????????????????????? | | ???????# ?????? ????????????????????????? | | ???????# ######### ??????????????????????????? | | ???????# ## # ########????????????????????? | | ???????# ## " # # T #????????????????????? | | ???????# ## T + + #????????????????????? | | ???????# ## " # # !! #????????????????????? | | ???????#=%+ # # !! #????????????????????? | | ???????#%## ##### !! #????????????????????? | | ???????#=#########???# #????????????????????? | | ???????# #???????????####+###????? /??????????? | | ???????# #??????????????# #??????? """#??????????? | | ???????# ################ #??????? """#??????????? | | ???????# % a g@#??????? """#??????????? | | ???????# ######## #######%#??????? ????????????? | | ######?# #????###+###???# ########+#############?? | | #?# #????# %% #???# %% ? | | "" #?# #????# """#???# %%%% #???????? | | "" #?# #????# """#???## % #???????? | | "" #?# #????# """#????# % ###+##???????? | | "" ### ###### #????# "" #????????????? | | "" # # """#????# "T #????????????? | | "" # + """#????# "" #????????????? | | "" ! + # """#????# #????????????? | | # # #????# #????????????? | | ###### # ####### ## #????????????? | | # # # # ## #????????????? | | """" # # # + ## #????????????? | | """" + ####### """ # ## #????????????? | | """" # #??# """ # ## #????????????? | | # #??# """ # ## #????????????? | | = # T #??# # ## #????????????? | | ###### #??# # ## #????????????? | | + #??# # < ## #????????????? | | """ # """ #??# # ## #????????????? | | """ # """ #??# [[! ####### #????????????? | | """ ##### """ #??# [[ # ^ + #????????????? | | #???# #??# [! # # #????????????? | +----------------------------------------------------+ Best States ------------- Heat Dissipation 25 Energy Generation 10 Energy Capacity 250 Matter Stores 300 Matter Capacity 300 Sight Range 16 Terrain Scan Density 10 Evasion (%) 55 Item Schematics ----------------- None Robot Schematics ------------------ None Fabricated ------------ Nothing Alien Tech Used ----------------- None Achievements -------------- GoHome() Challenges ------------ None Game ------ Seed SwarmMissileFlail Manual? 0 Play Time 00:10:24 Cumulative 14.7 hours Start 2024.11.08 @ 17:24:41 End 2024.11.08 @ 17:33:16 Sessions 1 Manual Loads 0 Difficulty Rogue Special Mode None Game No. 67 Rogue 62 Adventurer 3 Explorer 2 Win Type - Total 0 Types 0/0/0/0/0/0/0/0/0 Lore% 8 Gallery% 18 Achievement% 18 Wizard Run 0 Options --------- Layout 0 ASCII 0 Keyboard 0 Movement Mouse Keybinds 0 Fullscreen 1 Font 18/SmallcapsGlow Map View 38x25 Zoom Use 35% Tactical HUD 1 Map Filters NONE Filters NONE Steam 1 RUN: d20f53e6-8200-4a87-8393-2bdbcbc6f142